[Event "Late-Titled-Tuesday-Blitz-April-23-2024"]
[Site "Chess.com"]
[Date "2024.04.23"]
[Round "7"]
[White "protectiago"]
[Black "PawnEatingZombie"]
[Result "1-0"]
[WhiteElo "2073"]
[BlackElo "2209"]
[TimeControl "180+1"]
[EndTime "15:17:30 PDT"]
[Termination "protectiago won by resignation"]

1. d4 {[%clk 0:03:00.9]} 1... Nf6 {[%clk 0:02:58.6]} 2. c4 {[%clk 0:03:00.9]}
2... g6 {[%clk 0:02:58.7]} 3. Nc3 {[%clk 0:03:00.5]} 3... Bg7 {[%clk 0:02:59.2]}
4. e4 {[%clk 0:03:00.8]} 4... d6 {[%clk 0:02:59.8]} 5. Nf3 {[%clk 0:03:01.1]}
5... O-O {[%clk 0:03:00]} 6. Be2 {[%clk 0:03:00.9]} 6... e5 {[%clk 0:03:00.5]}
7. O-O {[%clk 0:03:00]} 7... exd4 {[%clk 0:03:00.9]} 8. Nxd4 {[%clk 0:02:59.7]}
8... Re8 {[%clk 0:03:00.5]} 9. f3 {[%clk 0:02:51.6]} 9... c6 {[%clk 0:03:01]}
10. Nb3 {[%clk 0:02:44.2]} 10... Na6 {[%clk 0:02:52]} 11. Be3 {[%clk 0:02:40]}
11... d5 {[%clk 0:02:51.2]} 12. cxd5 {[%clk 0:02:39.8]} 12... cxd5 {[%clk
0:02:46.5]} 13. Bf2 {[%clk 0:01:55.7]} 13... dxe4 {[%clk 0:02:35.9]} 14. fxe4
{[%clk 0:01:48.4]} 14... Be6 {[%clk 0:02:14.1]} 15. Nd4 {[%clk 0:01:46.4]} 15...
Bd7 {[%clk 0:02:10.2]} 16. Bc4 {[%clk 0:01:44.3]} 16... Nc5 {[%clk 0:01:58.3]}
17. e5 {[%clk 0:01:09.6]} 17... Rxe5 {[%clk 0:01:56.1]} 18. Nf3 {[%clk
0:01:09.9]} 18... Nfe4 {[%clk 0:01:47.2]} 19. Nxe5 {[%clk 0:00:54.7]} 19... Bxe5
{[%clk 0:01:46.5]} 20. Bxf7+ {[%clk 0:00:51.8]} 20... Kg7 {[%clk 0:01:45.6]} 21.
Nxe4 {[%clk 0:00:23.9]} 21... Nxe4 {[%clk 0:01:44.5]} 22. Be6 {[%clk 0:00:20.4]}
22... Bxe6 {[%clk 0:01:35.3]} 23. Qe2 {[%clk 0:00:20.5]} 23... Bf5 {[%clk
0:01:27]} 24. g4 {[%clk 0:00:19.6]} 24... Nxf2 {[%clk 0:01:26.9]} 25. Qxe5+
{[%clk 0:00:19.2]} 25... Qf6 {[%clk 0:01:25.7]} 26. Qxf6+ {[%clk 0:00:19.4]}
26... Kxf6 {[%clk 0:01:26.1]} 27. Rxf2 {[%clk 0:00:19.8]} 1-0

[Event "Late-Titled-Tuesday-Blitz-April-23-2024"]
[Site "Chess.com"]
[Date "2024.04.23"]
[Round "7"]
[White "1g60-1"]
[Black "Zhigalko_Sergei"]
[Result "0-1"]
[WhiteElo "2448"]
[BlackElo "2883"]
[TimeControl "180+1"]
[EndTime "15:17:40 PDT"]
[Termination "Zhigalko_Sergei won by resignation"]

1. e4 {[%clk 0:03:00.9]} 1... Nf6 {[%clk 0:02:58]} 2. e5 {[%clk 0:02:49.2]} 2...
Nd5 {[%clk 0:02:58.3]} 3. Nc3 {[%clk 0:02:48]} 3... e6 {[%clk 0:02:57.9]} 4.
Nxd5 {[%clk 0:02:46.8]} 4... exd5 {[%clk 0:02:57.7]} 5. Nf3 {[%clk 0:02:47.3]}
5... d6 {[%clk 0:02:56.8]} 6. d4 {[%clk 0:02:46.1]} 6... Be7 {[%clk 0:02:56.8]}
7. Bd3 {[%clk 0:02:45.8]} 7... O-O {[%clk 0:02:55.3]} 8. h4 {[%clk 0:02:46.2]}
8... h6 {[%clk 0:02:52.4]} 9. Bf4 {[%clk 0:02:43.8]} 9... c5 {[%clk 0:02:44]}
10. c3 {[%clk 0:02:37.7]} 10... cxd4 {[%clk 0:02:38.4]} 11. cxd4 {[%clk
0:02:37.7]} 11... Nc6 {[%clk 0:02:38.4]} 12. a3 {[%clk 0:02:31.8]} 12... Bg4
{[%clk 0:02:31.7]} 13. Bc2 {[%clk 0:01:56.7]} 13... dxe5 {[%clk 0:02:23.8]} 14.
dxe5 {[%clk 0:01:56.9]} 14... Rc8 {[%clk 0:02:10.2]} 15. Rc1 {[%clk 0:01:54.1]}
15... Qa5+ {[%clk 0:01:53.1]} 16. Kf1 {[%clk 0:01:51.3]} 16... Qb5+ {[%clk
0:01:39.3]} 17. Kg1 {[%clk 0:01:43.9]} 17... Rfd8 {[%clk 0:01:08.7]} 18. b4
{[%clk 0:01:31.6]} 18... d4 {[%clk 0:01:03.9]} 19. Bd3 {[%clk 0:01:24.7]} 19...
Qd5 {[%clk 0:01:01.3]} 20. Qe2 {[%clk 0:01:13.3]} 20... a6 {[%clk 0:00:43.9]}
21. Qd2 {[%clk 0:00:30.9]} 21... Bxf3 {[%clk 0:00:38.8]} 22. gxf3 {[%clk
0:00:31.4]} 22... Nxe5 {[%clk 0:00:38.6]} 23. Bf5 {[%clk 0:00:30.4]} 23... Nxf3+
{[%clk 0:00:38.6]} 0-1

[Event "Late-Titled-Tuesday-Blitz-April-23-2024"]
[Site "Chess.com"]
[Date "2024.04.23"]
[Round "7"]
[White "Kratos031"]
[Black "osielchesslover2011"]
[Result "1-0"]
[WhiteElo "2466"]
[BlackElo "2227"]
[TimeControl "180+1"]
[EndTime "15:17:45 PDT"]
[Termination "Kratos031 won on time"]

1. d4 {[%clk 0:03:00.9]} 1... Nf6 {[%clk 0:02:59.7]} 2. Nf3 {[%clk 0:03:01]}
2... g6 {[%clk 0:03:00.1]} 3. c4 {[%clk 0:03:00.8]} 3... Bg7 {[%clk 0:03:00.7]}
4. Nc3 {[%clk 0:03:01.4]} 4... O-O {[%clk 0:03:01.4]} 5. e4 {[%clk 0:03:01.9]}
5... d6 {[%clk 0:03:02.3]} 6. Be2 {[%clk 0:03:02]} 6... e5 {[%clk 0:03:02.7]} 7.
O-O {[%clk 0:03:02.2]} 7... Nc6 {[%clk 0:03:02.3]} 8. d5 {[%clk 0:03:02.8]} 8...
Ne7 {[%clk 0:03:02.7]} 9. Ne1 {[%clk 0:03:03.4]} 9... Nd7 {[%clk 0:03:03.2]} 10.
Nd3 {[%clk 0:03:04]} 10... f5 {[%clk 0:03:03.8]} 11. f3 {[%clk 0:03:04.5]} 11...
f4 {[%clk 0:03:04.1]} 12. Bd2 {[%clk 0:03:04.2]} 12... g5 {[%clk 0:03:00.7]} 13.
c5 {[%clk 0:03:04]} 13... Nxc5 {[%clk 0:02:54.2]} 14. Nxc5 {[%clk 0:03:02.8]}
14... dxc5 {[%clk 0:02:55.1]} 15. Rc1 {[%clk 0:02:55.1]} 15... Ng6 {[%clk
0:02:53.8]} 16. Na4 {[%clk 0:02:50.7]} 16... b6 {[%clk 0:02:52.4]} 17. b4 {[%clk
0:02:50.9]} 17... cxb4 {[%clk 0:02:45.2]} 18. Bxb4 {[%clk 0:02:49.7]} 18... Rf7
{[%clk 0:02:45.6]} 19. d6 {[%clk 0:02:33]} 19... c5 {[%clk 0:02:23.5]} 20. Bc4
{[%clk 0:02:31.2]} 20... cxb4 {[%clk 0:02:22.3]} 21. Bxf7+ {[%clk 0:02:29.6]}
21... Kxf7 {[%clk 0:02:22]} 22. Qd5+ {[%clk 0:02:28.9]} 22... Be6 {[%clk
0:02:19.3]} 23. Qb7+ {[%clk 0:02:21.9]} 23... Kg8 {[%clk 0:01:01.5]} 24. Rc7
{[%clk 0:02:19.7]} 24... Bf6 {[%clk 0:00:53.7]} 25. Rd1 {[%clk 0:02:04.3]} 25...
Rb8 {[%clk 0:00:45.3]} 26. Qxa7 {[%clk 0:01:38.6]} 26... Ra8 {[%clk 0:00:44]}
27. Qxb6 {[%clk 0:01:38.9]} 27... Rxa4 {[%clk 0:00:42.8]} 28. d7 {[%clk
0:01:39.4]} 28... Bxd7 {[%clk 0:00:15.1]} 29. Rdxd7 {[%clk 0:01:35.9]} 29... Qf8
{[%clk 0:00:15.5]} 30. Qe6+ {[%clk 0:01:26.4]} 1-0

[Event "Late-Titled-Tuesday-Blitz-April-23-2024"]
[Site "Chess.com"]
[Date "2024.04.23"]
[Round "7"]
[White "ReadySkate"]
[Black "DanielNaroditsky"]
[Result "0-1"]
[WhiteElo "2706"]
[BlackElo "2973"]
[TimeControl "180+1"]
[EndTime "15:17:46 PDT"]
[Termination "DanielNaroditsky won by resignation"]

1. d4 {[%clk 0:03:00.9]} 1... Nf6 {[%clk 0:02:59.5]} 2. c4 {[%clk 0:03:01.3]}
2... g6 {[%clk 0:02:59.1]} 3. Nc3 {[%clk 0:03:01.8]} 3... Bg7 {[%clk 0:02:59.5]}
4. e4 {[%clk 0:03:02]} 4... d6 {[%clk 0:03:00]} 5. Be2 {[%clk 0:03:02.5]} 5...
O-O {[%clk 0:03:00.2]} 6. Bg5 {[%clk 0:03:03.1]} 6... c5 {[%clk 0:02:57.3]} 7.
d5 {[%clk 0:03:03]} 7... h6 {[%clk 0:02:55.4]} 8. Bf4 {[%clk 0:03:01.1]} 8... b5
{[%clk 0:02:47.4]} 9. cxb5 {[%clk 0:02:59.1]} 9... a6 {[%clk 0:02:48.1]} 10. Qd2
{[%clk 0:02:56.2]} 10... axb5 {[%clk 0:02:45.6]} 11. Bxb5 {[%clk 0:02:57.1]}
11... Qa5 {[%clk 0:02:43]} 12. a4 {[%clk 0:02:56.9]} 12... Ba6 {[%clk
0:02:38.8]} 13. f3 {[%clk 0:02:52.3]} 13... g5 {[%clk 0:02:19.5]} 14. Be3 {[%clk
0:02:49.5]} 14... Bxb5 {[%clk 0:02:20]} 15. Nxb5 {[%clk 0:02:49.5]} 15... Qxb5
{[%clk 0:02:20.7]} 16. axb5 {[%clk 0:02:49.5]} 16... Rxa1+ {[%clk 0:02:21.6]}
17. Kf2 {[%clk 0:02:49.4]} 17... Nbd7 {[%clk 0:02:19.7]} 18. g3 {[%clk
0:02:48.1]} 18... Ne5 {[%clk 0:01:58.9]} 19. Kg2 {[%clk 0:02:40.4]} 19... Rb8
{[%clk 0:01:25.4]} 20. Ne2 {[%clk 0:02:30]} 20... Nxf3 {[%clk 0:01:17.7]} 21.
Kxf3 {[%clk 0:01:45.1]} 21... Rxh1 {[%clk 0:01:16.3]} 22. Ng1 {[%clk 0:01:34.3]}
22... Rxb5 {[%clk 0:01:11.4]} 23. Kg2 {[%clk 0:01:32.9]} 23... Ng4 {[%clk
0:00:49.8]} 24. Kxh1 {[%clk 0:00:35.6]} 24... Rxb2 {[%clk 0:00:49.9]} 25. Qxb2
{[%clk 0:00:27.3]} 25... Bxb2 {[%clk 0:00:50.8]} 26. Bd2 {[%clk 0:00:25.1]}
26... Nf2+ {[%clk 0:00:51]} 27. Kg2 {[%clk 0:00:25.1]} 27... Nxe4 {[%clk
0:00:51.9]} 28. Ba5 {[%clk 0:00:25.4]} 28... Nf6 {[%clk 0:00:52]} 0-1

[Event "Late-Titled-Tuesday-Blitz-April-23-2024"]
[Site "Chess.com"]
[Date "2024.04.23"]
[Round "7"]
[White "js20000"]
[Black "yaguigor"]
[Result "1-0"]
[WhiteElo "2744"]
[BlackElo "2567"]
[TimeControl "180+1"]
[EndTime "15:17:46 PDT"]
[Termination "js20000 won by resignation"]

1. b3 {[%clk 0:03:00.9]} 1... d5 {[%clk 0:02:56.4]} 2. Bb2 {[%clk 0:03:01.1]}
2... Bg4 {[%clk 0:02:56.6]} 3. f3 {[%clk 0:02:56]} 3... Bf5 {[%clk 0:02:55.3]}
4. Nc3 {[%clk 0:02:46.7]} 4... d4 {[%clk 0:02:48.5]} 5. Ne4 {[%clk 0:02:45.9]}
5... e5 {[%clk 0:02:44.6]} 6. Nf2 {[%clk 0:02:41.6]} 6... Nc6 {[%clk 0:02:43]}
7. e4 {[%clk 0:02:30.7]} 7... dxe3 {[%clk 0:02:40.6]} 8. dxe3 {[%clk 0:02:31.6]}
8... Qxd1+ {[%clk 0:02:39.9]} 9. Rxd1 {[%clk 0:02:31.9]} 9... Bxc2 {[%clk
0:02:36.9]} 10. Rc1 {[%clk 0:02:32.2]} 10... Bg6 {[%clk 0:02:35.2]} 11. Bb5
{[%clk 0:02:31.5]} 11... Bb4+ {[%clk 0:02:32.9]} 12. Ke2 {[%clk 0:02:31.3]}
12... O-O-O {[%clk 0:02:28.9]} 13. Nd3 {[%clk 0:02:18]} 13... a6 {[%clk
0:01:52.1]} 14. Nxb4 {[%clk 0:02:13.5]} 14... Nxb4 {[%clk 0:01:50.8]} 15. Bxe5
{[%clk 0:02:12.8]} 15... c6 {[%clk 0:01:35.9]} 16. Bxg7 {[%clk 0:02:10.3]} 16...
axb5 {[%clk 0:01:35.4]} 17. Bxh8 {[%clk 0:02:07.9]} 17... Bd3+ {[%clk 0:01:26]}
18. Kf2 {[%clk 0:02:07.6]} 18... Ne7 {[%clk 0:01:21]} 19. Bf6 {[%clk 0:02:06.2]}
19... Nbd5 {[%clk 0:01:21.1]} 20. Bxe7 {[%clk 0:02:05.1]} 20... Nxe7 {[%clk
0:01:21.1]} 21. Rd1 {[%clk 0:02:05.6]} 21... c5 {[%clk 0:01:18.2]} 22. Nh3
{[%clk 0:02:04.3]} 22... Ng6 {[%clk 0:01:15.5]} 23. Ke1 {[%clk 0:01:41.3]} 23...
c4 {[%clk 0:01:14]} 24. Nf2 {[%clk 0:01:40.3]} 24... Ne5 {[%clk 0:00:55.8]} 25.
f4 {[%clk 0:01:38.5]} 25... Nc6 {[%clk 0:00:55.8]} 26. Nxd3 {[%clk 0:01:38.1]}
26... cxd3 {[%clk 0:00:55.9]} 27. Kd2 {[%clk 0:01:38.4]} 27... Nb4 {[%clk
0:00:49]} 28. Rc1+ {[%clk 0:01:38.2]} 28... Nc2 {[%clk 0:00:47.3]} 29. Rhf1
{[%clk 0:01:33.9]} 29... f5 {[%clk 0:00:45.9]} 30. Rf3 {[%clk 0:01:33.8]} 30...
Rd7 {[%clk 0:00:40.1]} 31. Rh3 {[%clk 0:01:32.3]} 31... Kb8 {[%clk 0:00:36]} 32.
Rh5 {[%clk 0:01:32.2]} 32... Rf7 {[%clk 0:00:26.2]} 33. Kxd3 {[%clk 0:01:29.6]}
33... Nb4+ {[%clk 0:00:25.4]} 34. Ke2 {[%clk 0:01:28.2]} 34... Nxa2 {[%clk
0:00:25]} 35. Rc5 {[%clk 0:01:27.9]} 35... b4 {[%clk 0:00:21.4]} 36. Rhxf5
{[%clk 0:01:26.1]} 36... Rd7 {[%clk 0:00:20.2]} 37. Rf8+ {[%clk 0:01:21]} 1-0

[Event "Late-Titled-Tuesday-Blitz-April-23-2024"]
[Site "Chess.com"]
[Date "2024.04.23"]
[Round "7"]
[White "crosky"]
[Black "Attacker_2006"]
[Result "0-1"]
[WhiteElo "2345"]
[BlackElo "2533"]
[TimeControl "180+1"]
[EndTime "15:17:54 PDT"]
[Termination "Attacker_2006 won on time"]

1. d4 {[%clk 0:03:00.9]} 1... Nf6 {[%clk 0:02:54]} 2. Bg5 {[%clk 0:03:01]} 2...
d5 {[%clk 0:02:50.9]} 3. Nd2 {[%clk 0:03:01.4]} 3... g6 {[%clk 0:02:41.6]} 4. e3
{[%clk 0:02:56.8]} 4... Bg7 {[%clk 0:02:41.7]} 5. Bd3 {[%clk 0:02:57.5]} 5...
O-O {[%clk 0:02:41.8]} 6. f4 {[%clk 0:02:58.2]} 6... c5 {[%clk 0:02:42.2]} 7. c3
{[%clk 0:02:58.4]} 7... cxd4 {[%clk 0:02:42.8]} 8. exd4 {[%clk 0:02:58.4]} 8...
Nc6 {[%clk 0:02:43.4]} 9. Ngf3 {[%clk 0:02:58.5]} 9... Bf5 {[%clk 0:02:43.8]}
10. Qe2 {[%clk 0:02:51.9]} 10... Bxd3 {[%clk 0:02:43.5]} 11. Qxd3 {[%clk
0:02:52.8]} 11... h6 {[%clk 0:02:43.3]} 12. Bxf6 {[%clk 0:02:48.5]} 12... exf6
{[%clk 0:02:44.2]} 13. O-O {[%clk 0:02:48.3]} 13... Re8 {[%clk 0:02:44.2]} 14.
Rae1 {[%clk 0:02:47.8]} 14... f5 {[%clk 0:02:43.6]} 15. Ne5 {[%clk 0:02:47.2]}
15... Qd6 {[%clk 0:02:42.4]} 16. Ndf3 {[%clk 0:02:45.2]} 16... Re7 {[%clk
0:02:37.1]} 17. Re2 {[%clk 0:02:44.4]} 17... Rae8 {[%clk 0:02:37]} 18. Rfe1
{[%clk 0:02:45.1]} 18... Qd8 {[%clk 0:02:31.7]} 19. Re3 {[%clk 0:02:38.2]} 19...
Kh7 {[%clk 0:02:23.5]} 20. Qb5 {[%clk 0:02:38.3]} 20... Nxe5 {[%clk 0:02:17.9]}
21. dxe5 {[%clk 0:02:23.4]} 21... f6 {[%clk 0:02:13.8]} 22. e6 {[%clk
0:02:06.3]} 22... Qd6 {[%clk 0:02:08.7]} 23. Nd4 {[%clk 0:01:50.9]} 23... Qxf4
{[%clk 0:02:04.5]} 24. Qxd5 {[%clk 0:01:50.5]} 24... Qc7 {[%clk 0:02:02]} 25.
Kh1 {[%clk 0:01:27.5]} 25... Rd8 {[%clk 0:01:55.3]} 26. Qb5 {[%clk 0:01:18.8]}
26... a6 {[%clk 0:01:54.9]} 27. Qf1 {[%clk 0:01:07.6]} 27... f4 {[%clk 0:01:55]}
28. Rf3 {[%clk 0:01:01.4]} 28... f5 {[%clk 0:01:47.7]} 29. Rxf4 {[%clk 0:00:57]}
29... Qc5 {[%clk 0:01:41.6]} 30. Nb3 {[%clk 0:00:41.1]} 30... Qd6 {[%clk
0:01:39.1]} 31. Rb4 {[%clk 0:00:25.5]} 31... b5 {[%clk 0:01:34.4]} 32. a4 {[%clk
0:00:20.5]} 32... bxa4 {[%clk 0:01:33.2]} 33. Rxa4 {[%clk 0:00:20]} 33... Rxe6
{[%clk 0:01:33.9]} 34. Rxe6 {[%clk 0:00:19.8]} 34... Qxe6 {[%clk 0:01:34.5]} 35.
Nc5 {[%clk 0:00:14.5]} 35... Qc6 {[%clk 0:01:32.1]} 36. Rc4 {[%clk 0:00:07.8]}
36... Qb5 {[%clk 0:01:31.8]} 37. b4 {[%clk 0:00:06.7]} 37... Qxc4 {[%clk
0:01:31.9]} 0-1

[Event "Late-Titled-Tuesday-Blitz-April-23-2024"]
[Site "Chess.com"]
[Date "2024.04.23"]
[Round "7"]
[White "martinmena"]
[Black "dianamirza"]
[Result "1-0"]
[WhiteElo "2164"]
[BlackElo "2020"]
[TimeControl "180+1"]
[EndTime "15:17:54 PDT"]
[Termination "martinmena won on time"]

1. c4 {[%clk 0:03:00.9]} 1... c5 {[%clk 0:02:51.1]} 2. g3 {[%clk 0:03:00.7]}
2... Nc6 {[%clk 0:02:51.6]} 3. Bg2 {[%clk 0:02:59.7]} 3... g6 {[%clk 0:02:52.5]}
4. Nc3 {[%clk 0:02:59.4]} 4... Bg7 {[%clk 0:02:53.2]} 5. e4 {[%clk 0:02:59.8]}
5... e6 {[%clk 0:02:54]} 6. Nge2 {[%clk 0:03:00]} 6... Nge7 {[%clk 0:02:54.8]}
7. d3 {[%clk 0:03:00.5]} 7... O-O {[%clk 0:02:55.7]} 8. O-O {[%clk 0:03:00.8]}
8... Rb8 {[%clk 0:02:51.6]} 9. Be3 {[%clk 0:02:58.7]} 9... d6 {[%clk 0:02:50.8]}
10. Qd2 {[%clk 0:02:59.1]} 10... a6 {[%clk 0:02:49.1]} 11. Bh6 {[%clk
0:02:57.2]} 11... b5 {[%clk 0:02:30]} 12. Bxg7 {[%clk 0:02:33.6]} 12... Kxg7
{[%clk 0:02:28.6]} 13. b3 {[%clk 0:02:34.1]} 13... bxc4 {[%clk 0:02:08.7]} 14.
dxc4 {[%clk 0:02:35]} 14... f5 {[%clk 0:02:05.6]} 15. Rad1 {[%clk 0:02:14.3]}
15... fxe4 {[%clk 0:01:52.9]} 16. Nxe4 {[%clk 0:02:08.5]} 16... d5 {[%clk
0:01:38.8]} 17. Nxc5 {[%clk 0:02:05]} 17... dxc4 {[%clk 0:01:35.1]} 18. Qxd8
{[%clk 0:02:00.2]} 18... Rxd8 {[%clk 0:01:36]} 19. Rxd8 {[%clk 0:01:59.1]} 19...
Nxd8 {[%clk 0:01:30.8]} 20. bxc4 {[%clk 0:01:59.5]} 20... Rb2 {[%clk 0:01:27.1]}
21. Nc3 {[%clk 0:01:32.8]} 21... Rc2 {[%clk 0:01:21.3]} 22. N5e4 {[%clk
0:01:30.9]} 22... Bb7 {[%clk 0:01:15.4]} 23. c5 {[%clk 0:01:29.5]} 23... Ndc6
{[%clk 0:00:51]} 24. Rd1 {[%clk 0:01:16.7]} 24... Nd5 {[%clk 0:00:41.2]} 25.
Nxd5 {[%clk 0:01:14.4]} 25... exd5 {[%clk 0:00:38.3]} 26. Nd6 {[%clk 0:01:13.6]}
26... Ba8 {[%clk 0:00:34.9]} 27. Ne8+ {[%clk 0:01:07.2]} 27... Kf8 {[%clk
0:00:31.1]} 28. Nc7 {[%clk 0:01:07]} 1-0

[Event "Late-Titled-Tuesday-Blitz-April-23-2024"]
[Site "Chess.com"]
[Date "2024.04.23"]
[Round "7"]
[White "lamomiajunior"]
[Black "jcibarra"]
[Result "1-0"]
[WhiteElo "2772"]
[BlackElo "2985"]
[TimeControl "180+1"]
[EndTime "15:17:55 PDT"]
[Termination "lamomiajunior won by resignation"]

1. d4 {[%clk 0:03:00.9]} 1... Nf6 {[%clk 0:02:52.3]} 2. Nc3 {[%clk 0:03:01.3]}
2... d5 {[%clk 0:02:50.7]} 3. Bf4 {[%clk 0:03:01.9]} 3... a6 {[%clk 0:02:48.8]}
4. e3 {[%clk 0:03:02.3]} 4... e6 {[%clk 0:02:45.6]} 5. g4 {[%clk 0:03:02.2]}
5... b5 {[%clk 0:02:43.2]} 6. g5 {[%clk 0:03:00.9]} 6... Nfd7 {[%clk 0:02:42.1]}
7. Nf3 {[%clk 0:03:01.4]} 7... c5 {[%clk 0:02:41.1]} 8. h4 {[%clk 0:03:00.3]}
8... Nc6 {[%clk 0:02:41.6]} 9. e4 {[%clk 0:03:00.1]} 9... Nb6 {[%clk 0:02:19.5]}
10. Bg2 {[%clk 0:02:43.2]} 10... Bb7 {[%clk 0:02:11.9]} 11. exd5 {[%clk
0:02:41.7]} 11... Nxd5 {[%clk 0:02:12]} 12. Nxd5 {[%clk 0:02:40.8]} 12... Qxd5
{[%clk 0:02:11.4]} 13. dxc5 {[%clk 0:02:37.5]} 13... Qxc5 {[%clk 0:02:00.3]} 14.
O-O {[%clk 0:02:16.7]} 14... Rd8 {[%clk 0:01:58]} 15. Qe2 {[%clk 0:02:16.8]}
15... Be7 {[%clk 0:01:57.8]} 16. c3 {[%clk 0:02:16.1]} 16... O-O {[%clk
0:01:56.9]} 17. Rfd1 {[%clk 0:02:15.6]} 17... Qf5 {[%clk 0:01:39.3]} 18. Bc7
{[%clk 0:02:10.4]} 18... Rxd1+ {[%clk 0:01:37.7]} 19. Rxd1 {[%clk 0:02:11.3]}
19... Rc8 {[%clk 0:01:37.6]} 20. Bg3 {[%clk 0:02:04.6]} 20... Bf8 {[%clk
0:01:35]} 21. Ne5 {[%clk 0:02:02.9]} 21... Ba8 {[%clk 0:01:26.8]} 22. Be4 {[%clk
0:01:30.5]} 22... Qh3 {[%clk 0:01:25.7]} 23. Bxh7+ {[%clk 0:01:25.6]} 23... Kxh7
{[%clk 0:01:03.8]} 24. Qh5+ {[%clk 0:01:24.4]} 24... Kg8 {[%clk 0:01:04.5]} 25.
Qxf7+ {[%clk 0:01:24.9]} 25... Kh7 {[%clk 0:01:05.1]} 26. Qh5+ {[%clk
0:01:13.2]} 26... Kg8 {[%clk 0:01:05.1]} 27. g6 {[%clk 0:00:54.7]} 27... Qh1+
{[%clk 0:00:27]} 28. Kxh1 {[%clk 0:00:54.9]} 28... Nxe5+ {[%clk 0:00:27.6]} 29.
Kg1 {[%clk 0:00:55.6]} 1-0

[Event "Late-Titled-Tuesday-Blitz-April-23-2024"]
[Site "Chess.com"]
[Date "2024.04.23"]
[Round "7"]
[White "Nf3c5"]
[Black "Brahianzevich"]
[Result "1-0"]
[WhiteElo "2619"]
[BlackElo "2471"]
[TimeControl "180+1"]
[EndTime "15:18:00 PDT"]
[Termination "Nf3c5 won by resignation"]

1. e4 {[%clk 0:03:00.9]} 1... c5 {[%clk 0:00:46.9]} 2. Nc3 {[%clk 0:02:57.7]}
2... a6 {[%clk 0:00:46.2]} 3. d4 {[%clk 0:02:57]} 3... cxd4 {[%clk 0:00:46.1]}
4. Qxd4 {[%clk 0:02:57.7]} 4... Nc6 {[%clk 0:00:46.2]} 5. Qe3 {[%clk 0:02:53.6]}
5... e6 {[%clk 0:00:44.4]} 6. Qg3 {[%clk 0:02:38.3]} 6... b5 {[%clk 0:00:36.6]}
7. Bf4 {[%clk 0:02:09.7]} 7... Nf6 {[%clk 0:00:21.1]} 8. a3 {[%clk 0:02:03.6]}
8... Nh5 {[%clk 0:00:19.9]} 9. Qf3 {[%clk 0:01:59.8]} 9... Nxf4 {[%clk 0:00:20]}
10. Qxf4 {[%clk 0:01:59.7]} 10... Qf6 {[%clk 0:00:18.6]} 11. Qg3 {[%clk
0:01:55.7]} 11... b4 {[%clk 0:00:14.3]} 12. axb4 {[%clk 0:01:55.6]} 12... Bxb4
{[%clk 0:00:15.2]} 13. Ne2 {[%clk 0:01:47]} 13... O-O {[%clk 0:00:15.7]} 14. f4
{[%clk 0:01:47]} 14... d5 {[%clk 0:00:15.7]} 15. e5 {[%clk 0:01:44.8]} 15... Qf5
{[%clk 0:00:15.9]} 16. O-O-O {[%clk 0:01:42.8]} 16... Bxc3 {[%clk 0:00:15.1]}
17. Nxc3 {[%clk 0:01:42.4]} 17... Bd7 {[%clk 0:00:14.5]} 18. Bd3 {[%clk
0:01:42.5]} 18... Qh5 {[%clk 0:00:14.2]} 19. Qf2 {[%clk 0:01:39.2]} 19... Nb4
{[%clk 0:00:14.3]} 20. Kb1 {[%clk 0:01:32.8]} 20... Nxd3 {[%clk 0:00:13.5]} 21.
Rxd3 {[%clk 0:01:33.3]} 21... Rfb8 {[%clk 0:00:12.6]} 22. g4 {[%clk 0:01:27.4]}
22... Qxg4 {[%clk 0:00:12.3]} 23. Rg1 {[%clk 0:01:28.1]} 23... Qh5 {[%clk
0:00:10.4]} 24. Rdg3 {[%clk 0:01:27.7]} 24... g6 {[%clk 0:00:09.7]} 25. Ne2
{[%clk 0:01:26]} 25... Qf5 {[%clk 0:00:08.9]} 26. Nd4 {[%clk 0:01:25.7]} 26...
Qe4 {[%clk 0:00:09.4]} 27. Re1 {[%clk 0:01:25.6]} 27... Qxe1+ {[%clk 0:00:02.2]}
28. Qxe1 {[%clk 0:01:23.5]} 28... a5 {[%clk 0:00:02.6]} 29. f5 {[%clk
0:01:23.4]} 29... exf5 {[%clk 0:00:01.7]} 30. e6 {[%clk 0:01:23.9]} 30... Re8
{[%clk 0:00:01.4]} 31. exf7+ {[%clk 0:01:18.9]} 31... Kxf7 {[%clk 0:00:02.3]}
32. Qd2 {[%clk 0:01:14.4]} 32... Re4 {[%clk 0:00:02.3]} 33. Nf3 {[%clk
0:01:11.9]} 33... Rae8 {[%clk 0:00:03.1]} 34. Ng5+ {[%clk 0:01:12.4]} 34... Kg7
{[%clk 0:00:02.8]} 35. Nxe4 {[%clk 0:01:12.3]} 1-0

[Event "Late-Titled-Tuesday-Blitz-April-23-2024"]
[Site "Chess.com"]
[Date "2024.04.23"]
[Round "7"]
[White "Navyblue1"]
[Black "kleber2007"]
[Result "0-1"]
[WhiteElo "2269"]
[BlackElo "2443"]
[TimeControl "180+1"]
[EndTime "15:18:01 PDT"]
[Termination "kleber2007 won by resignation"]

1. d4 {[%clk 0:02:52.2]} 1... Nf6 {[%clk 0:02:58.2]} 2. c4 {[%clk 0:02:50.3]}
2... g6 {[%clk 0:02:58.4]} 3. Nc3 {[%clk 0:02:47.8]} 3... Bg7 {[%clk 0:02:51.9]}
4. e4 {[%clk 0:02:43.7]} 4... O-O {[%clk 0:02:51.7]} 5. Be2 {[%clk 0:02:37.6]}
5... d6 {[%clk 0:02:51.6]} 6. Bg5 {[%clk 0:02:36.4]} 6... h6 {[%clk 0:02:51.5]}
7. Be3 {[%clk 0:02:32.9]} 7... c5 {[%clk 0:02:50.2]} 8. Nf3 {[%clk 0:02:27.1]}
8... cxd4 {[%clk 0:02:40.7]} 9. Nxd4 {[%clk 0:02:26.7]} 9... Nc6 {[%clk
0:02:39.5]} 10. O-O {[%clk 0:02:25]} 10... Bd7 {[%clk 0:02:25.5]} 11. Rc1 {[%clk
0:02:19.9]} 11... Nxd4 {[%clk 0:02:24]} 12. Bxd4 {[%clk 0:02:18.5]} 12... Bc6
{[%clk 0:02:24.2]} 13. f3 {[%clk 0:02:13.1]} 13... a5 {[%clk 0:02:23.8]} 14. b3
{[%clk 0:02:05.9]} 14... Nd7 {[%clk 0:02:22.9]} 15. Bxg7 {[%clk 0:02:02.3]}
15... Kxg7 {[%clk 0:02:23.8]} 16. Qd4+ {[%clk 0:02:01.7]} 16... f6 {[%clk
0:02:20.8]} 17. Rfd1 {[%clk 0:01:56.7]} 17... Qb6 {[%clk 0:02:20.2]} 18. Nd5
{[%clk 0:01:51.3]} 18... Qxd4+ {[%clk 0:02:16.8]} 19. Rxd4 {[%clk 0:01:52.2]}
19... Kf7 {[%clk 0:01:43.8]} 20. Rcd1 {[%clk 0:01:38.8]} 20... Rfd8 {[%clk
0:01:35.9]} 21. a3 {[%clk 0:01:16.1]} 21... Nc5 {[%clk 0:01:32.3]} 22. b4 {[%clk
0:01:13.7]} 22... axb4 {[%clk 0:01:31.7]} 23. axb4 {[%clk 0:01:14.6]} 23... e5
{[%clk 0:01:27.6]} 24. R4d2 {[%clk 0:01:09.5]} 24... Nb3 {[%clk 0:01:28.1]} 25.
Rb2 {[%clk 0:01:02.4]} 25... Nd4 {[%clk 0:01:28]} 26. Bd3 {[%clk 0:00:56.7]}
26... Bxd5 {[%clk 0:01:25.2]} 27. cxd5 {[%clk 0:00:55.5]} 27... Rdc8 {[%clk
0:01:24.6]} 28. Kf2 {[%clk 0:00:54.9]} 28... Rc3 {[%clk 0:01:20.9]} 29. Be2
{[%clk 0:00:48.8]} 29... f5 {[%clk 0:01:15.5]} 30. b5 {[%clk 0:00:39.5]} 30...
f4 {[%clk 0:01:07.3]} 31. b6 {[%clk 0:00:36.9]} 31... g5 {[%clk 0:01:03.5]} 32.
Rdd2 {[%clk 0:00:36.3]} 32... Ke7 {[%clk 0:01:02.9]} 33. Ra2 {[%clk 0:00:34.5]}
33... Rca3 {[%clk 0:01:01.2]} 34. Rxa3 {[%clk 0:00:30.5]} 34... Rxa3 {[%clk
0:01:02.1]} 35. Rd3 {[%clk 0:00:27.5]} 35... Ra2 {[%clk 0:00:58.6]} 36. Kf1
{[%clk 0:00:23.9]} 36... Nxe2 {[%clk 0:00:52.6]} 0-1